fUST/lending_fUST_20260228
["ID","MTS","AMOUNT","RATE_DAILY","PERIOD"]
[406840289,1772220638010,-267.217159,0.00016198,2]
[406840290,1772220638019,-272.92805001,0.00016313,2]
[406840291,1772220638028,-500.0,0.0001661,2]
[406840292,1772220638038,-171.341,0.0001666,2]
[406840293,1772220638047,-500.0,0.0001666,2]
[406840294,1772220638061,-420.0,0.00016809,2]
[406840295,1772220638070,-267.217159,0.00016827,2]
[406840296,1772220638079,-2297.91151921,0.00016876,2]
[406840297,1772220638091,-3135.9736503,0.00016895,2]
[406840298,1772220638103,-400.0,0.000169,2]
[406840299,1772220638114,-500.0,0.00016915,2]
[406840300,1772220638126,-188.47713046,0.00016975,2]
[406840301,1772220638135,-268.62368979,0.00016975,2]
[406840302,1772220638144,-500.0,0.00016975,2]
[406840303,1772220638154,-500.0,0.00016975,2]
[406840304,1772220638163,-562.28098174,0.00016975,2]
[406840305,1772220638172,-38000.0,0.00016976,3]
[406840306,1772220638182,-21224.29257138,0.00016976,2]
[406840307,1772220638191,-2381.14822039,0.00017,2]
[406840308,1772220638201,-986.54672592,0.00017005,2]
[406840309,1772220638210,-258.98656776,0.00017099,2]
[406840310,1772220638219,-64736.70621265,0.000171,2]
[406840320,1772220640903,-19575.6,0.000171,2]
[406840321,1772220640917,-281.43646534,0.000171,2]
[406840334,1772220642824,-26088.13711472,0.000171,2]
[406840335,1772220642972,-1307.64,0.000171,2]
[406840346,1772220645836,-729.0,0.0001601,2]
[406840347,1772220645846,-322.65764077,0.000171,2]
[406840348,1772220645892,-59555.20978607,0.000171,2]
[406840349,1772220645903,-7676.39420541,0.000171,2]
[406840354,1772220915721,682.1893,0.0001144,120]
[406840355,1772220915920,306.5274,0.00011774,120]
[406840615,1772221587918,184.181427,0.00015326,7]
[406840664,1772221712266,7760.674066,9.422e-05,2]
[406840673,1772221831832,-5539.7662621,0.00010153,2]
[406840674,1772221831841,-204.27579441,0.00010153,2]
[406840675,1772221831851,-562.0,0.00010153,2]
[406840677,1772221831860,-1200.0,0.00010416,2]
[406840678,1772221831870,-300.0,0.00010417,2]
[406840679,1772221831879,-300.0,0.00010417,2]
[406840680,1772221831889,-300.0,0.00010417,2]
[406840681,1772221831899,-300.0,0.00010417,2]
[406840682,1772221831909,-300.0,0.00010417,2]
[406840683,1772221831918,-4093.07329377,0.00010419,2]
[406840684,1772221831928,-27587.03298823,0.00010433,2]
[406840685,1772221831938,-200.0,0.00010433,2]
[406840686,1772221831948,-526.0,0.000105,2]
[406840687,1772221831960,-180.25979894,0.0001062,2]
[406840688,1772221831969,-300.0,0.00010626,2]
[406840689,1772221831979,-300.0,0.00010626,2]
[406840690,1772221831988,-300.0,0.00010626,2]
[406840691,1772221831998,-300.0,0.00010626,2]
[406840692,1772221832008,-300.0,0.00010626,2]
[406840693,1772221832017,-300.0,0.00010626,2]
[406840694,1772221832028,-300.0,0.00010626,2]
[406840695,1772221832038,-300.0,0.00010626,2]
[406840696,1772221832048,-300.0,0.00010626,2]
[406840697,1772221832057,-300.0,0.00010626,2]
[406840698,1772221832067,-300.0,0.00010626,2]
[406840699,1772221832076,-300.0,0.00010626,2]
[406840700,1772221832085,-300.0,0.00010626,2]
[406840701,1772221832095,-300.0,0.00010626,2]
[406840702,1772221832105,-300.0,0.00010626,2]
[406840703,1772221832114,-421.72179953,0.00010655,2]
[406840704,1772221832124,-500.0,0.00010818,2]
[406840705,1772221832135,-1717.8588,0.00011107,2]
[406840706,1772221832145,-500.0,0.00011162,2]
[406840707,1772221832155,-600.0,0.00011328,2]
[406840708,1772221832164,-41.89445963,0.00011454,2]
[406840709,1772221832176,-378.10554037,0.00011454,2]
[406840710,1772221832186,-292.83445963,0.00011458,2]
[406840711,1772221832197,-553.4,0.00011458,2]
[406840719,1772221838011,-712.76554037,0.00011458,2]
[406840720,1772221838020,-1456.3765779,0.00011537,2]
[406840721,1772221838029,-421.72179952,0.00011986,2]
[406840722,1772221838038,-1509.0382168,0.00012095,2]
[406840723,1772221838047,-241.0454374,0.00012153,2]
[406840724,1772221838056,-304.67,0.00012329,2]
[406840725,1772221838065,-253.89,0.00012329,2]
[406840726,1772221838074,-211.58,0.00012329,2]
[406840727,1772221838083,-176.31,0.00012329,2]
[406840728,1772221838093,-881.59,0.00012329,2]
[406840730,1772221838102,-720.0,0.00012461,2]
[406840732,1772221838111,-587.0,0.00012594,2]
[406840734,1772221838120,-500.0,0.00012999,2]
[406840736,1772221838130,-255.82702629,0.00012999,2]
[406840737,1772221838139,-500.0,0.00012999,2]
[406840738,1772221838149,-150.0,0.00012999,2]
[406840739,1772221838158,-150.0,0.00012999,2]
[406840740,1772221838168,-500.0,0.00012999,2]
[406840741,1772221838177,-150.0,0.00012999,2]
[406840742,1772221838186,-150.0,0.00012999,2]
[406840743,1772221838196,-150.0,0.00012999,2]
[406840744,1772221838205,-150.0,0.00012999,2]
[406840745,1772221838215,-150.0,0.00012999,2]
[406840746,1772221838224,-150.0,0.00012999,2]
[406840747,1772221838234,-211.1904845,0.00012999,2]
[406840748,1772221838244,-150.0,0.00012999,2]
[406840749,1772221838253,-150.0,0.00012999,2]
[406840750,1772221838262,-500.0,0.00013054,2]
[406840751,1772221838272,-193.96881003,0.00013054,2]
[406840752,1772221838282,-150.0,0.00013054,2]
[406840753,1772221838292,-500.0,0.00013054,2]
[406840754,1772221838302,-150.0,0.00013054,2]
[406840755,1772221838311,-150.0,0.00013054,2]
[406840756,1772221838321,-150.0,0.00013054,2]
[406840757,1772221838330,-150.0,0.00013054,2]
[406840758,1772221838339,-150.0,0.00013054,2]
[406840759,1772221838348,-150.0,0.00013054,2]
[406840760,1772221838357,-150.0,0.00013054,2]
[406840761,1772221838366,-150.0,0.00013054,2]
[406840762,1772221838376,-500.0,0.00013109,2]
[406840763,1772221838385,-150.0,0.00013109,2]
[406840764,1772221838394,-500.0,0.00013109,2]
[406840765,1772221838404,-150.0,0.00013109,2]
[406840766,1772221838417,-200.0,0.00013109,2]
[406840767,1772221838426,-150.0,0.00013109,2]
[406840768,1772221838435,-150.0,0.00013109,2]
[406840769,1772221838444,-286.67504954,0.00013109,2]
[406840770,1772221838455,-265.80474327,0.00013109,2]
[406840771,1772221838464,-500.0,0.00013163,2]
[406840772,1772221838474,-150.0,0.00013163,2]
[406840773,1772221838483,-500.0,0.00013163,2]
[406840774,1772221838492,-184.25309926,0.00013163,2]
[406840775,1772221838502,-156.67461009,0.00013163,2]
[406840776,1772221838511,-194.72818468,0.00013163,2]
[406840777,1772221838520,-500.0,0.00013218,2]
[406840778,1772221838529,-169.0,0.00013218,2]
[406840779,1772221838539,-500.0,0.00013218,2]
[406840780,1772221838548,-500.0,0.00013273,2]
[406840781,1772221838557,-541.19898786,0.00013273,2]
[406840782,1772221838567,-500.0,0.00013273,2]
[406840783,1772221838576,-152.6768023,0.00013273,2]
[406840784,1772221838585,-218.95137385,0.00013273,2]
[406840785,1772221838594,-500.0,0.00013273,2]
[406840786,1772221838603,-500.0,0.00013273,2]
[406840787,1772221838613,-292.05794745,0.00013273,2]
[406840788,1772221838624,-207.94205255,0.00013273,2]
[406840789,1772221838635,-500.0,0.00013273,2]
[406840790,1772221838646,-500.0,0.00013273,2]
[406840791,1772221838655,-500.0,0.00013273,2]
[406840792,1772221838665,-500.0,0.00013273,2]
[406840793,1772221838675,-500.0,0.00013273,2]
[406840794,1772221838684,-301.45973068,0.00013273,2]
[406840795,1772221838694,-500.0,0.00013273,2]
[406840796,1772221838703,-500.0,0.00013273,2]
[406840797,1772221838714,-500.0,0.00013273,2]
[406840798,1772221838725,-500.0,0.00013273,2]
[406840799,1772221838735,-533.28749668,0.00013273,2]
[406840800,1772221838745,-500.0,0.00013273,2]
[406840801,1772221838755,-500.0,0.00013273,2]
[406840802,1772221838765,-500.0,0.00013273,2]
[406840803,1772221838773,-500.0,0.00013273,2]
[406840804,1772221838782,-450.0,0.00013273,2]
[406840805,1772221838792,-500.0,0.00013273,2]
[406840806,1772221838801,-421.72179952,0.00013317,2]
[406840807,1772221838810,-374.34078752,0.00013415,2]
[406840808,1772221838819,-150.0,0.00013424,2]
[406840809,1772221838828,-151.0,0.00013424,2]
[406840810,1772221838837,-500.0,0.00013489,2]
[406840811,1772221838846,-500.0,0.00013547,2]
[406840812,1772221838855,-300.0,0.00013673,2]
[406840813,1772221838864,-300.0,0.00013673,2]
[406840814,1772221838873,-500.0,0.00013698,2]
[406840815,1772221838882,-500.0,0.00013698,2]
[406840816,1772221838891,-500.0,0.00013698,2]
[406840817,1772221838900,-500.0,0.00013698,2]
[406840818,1772221838909,-500.0,0.00013698,2]
[406840819,1772221838918,-338.233397,0.00013699,2]
[406840820,1772221838927,-500.0,0.00013699,2]
[406840821,1772221838936,-500.0,0.00013699,2]
[406840822,1772221838945,-530.01953983,0.00013699,2]
[406840823,1772221838955,-500.0,0.00013699,2]
[406840824,1772221838964,-500.0,0.00013699,2]
[406840825,1772221838973,-500.0,0.00013699,2]
[406840826,1772221838982,-500.0,0.00013699,2]
[406840827,1772221838991,-500.37852951,0.00013699,2]
[406840828,1772221839000,-501.57271729,0.00013699,2]
[406840829,1772221839009,-501.89655884,0.00013699,2]
[406840830,1772221839018,-500.0,0.00013699,2]
[406840831,1772221839028,-500.62165108,0.00013699,2]
[406840832,1772221839037,-500.0,0.00013699,2]
[406840833,1772221839046,-512.28487873,0.00013699,2]
[406840834,1772221839055,-335.57061376,0.00013699,2]
[406840835,1772221839064,-500.0,0.00013699,2]
[406840836,1772221839074,-501.08503503,0.00013699,2]
[406840837,1772221839083,-500.0,0.00013699,2]
[406840838,1772221839092,-500.0,0.00013699,2]
[406840839,1772221839101,-501.82016139,0.00013699,2]
[406840840,1772221839111,-500.0,0.00013699,2]
[406840841,1772221839120,-500.0,0.00013699,2]
[406840842,1772221839129,-500.0,0.00013699,2]
[406840843,1772221839139,-500.0,0.00013699,2]
[406840844,1772221839148,-500.0,0.00013699,2]
[406840845,1772221839159,-500.0,0.00013699,2]
[406840846,1772221839168,-500.0,0.00013699,2]
[406840847,1772221839177,-500.0,0.00013699,2]
[406840848,1772221839187,-500.0,0.00013699,2]
[406840849,1772221839196,-228.88551331,0.00013699,2]
[406840850,1772221839206,-500.0,0.00013699,2]
[406840851,1772221839215,-500.0,0.00013699,2]
[406840852,1772221839224,-500.0,0.00013699,2]
[406840853,1772221839233,-500.0,0.00013699,2]
[406840854,1772221839242,-500.0,0.00013699,2]
[406840855,1772221839252,-500.0,0.00013699,2]
[406840856,1772221839261,-500.0,0.00013699,2]
[406840857,1772221839271,-500.0,0.00013699,2]
[406840858,1772221839280,-422.91233309,0.00013699,2]
[406840859,1772221839289,-500.0,0.00013699,2]
[406840860,1772221839299,-460.9248584,0.00013699,2]
[406840861,1772221839308,-500.0,0.00013699,2]
[406840862,1772221839317,-500.0,0.00013699,2]
[406840863,1772221839326,-500.0,0.00013699,2]
[406840864,1772221839335,-500.0,0.00013699,2]
[406840865,1772221839345,-500.0,0.00013699,2]
[406840866,1772221839354,-500.32346929,0.00013699,2]
[406840867,1772221839364,-500.0,0.00013699,2]
[406840868,1772221839374,-500.0,0.00013699,2]
[406840869,1772221839383,-500.0,0.00013699,2]
[406840870,1772221839392,-500.0,0.00013699,2]
[406840871,1772221839402,-500.0,0.00013699,2]
[406840872,1772221839414,-500.0,0.00013699,2]
[406840873,1772221839424,-500.157884,0.00013699,2]
[406840874,1772221839433,-500.0,0.00013699,2]
[406840875,1772221839443,-389.16745887,0.00013699,2]
[406840876,1772221839453,-150.0,0.000137,2]
[406840877,1772221839463,-864.0,0.00013707,2]
[406840878,1772221839474,-151.0,0.00013707,2]
[406840879,1772221839484,-553.09007371,0.00013747,2]
[406840880,1772221839494,-500.0,0.0001382,2]
[406840881,1772221839504,-1000.0,0.00013821,2]
[406840882,1772221839513,-210.94405241,0.00013821,2]
[406840883,1772221839814,-1000.0,0.00013821,2]
[406840884,1772221839825,-1000.0,0.00013821,2]
[406840885,1772221839836,-1001.32451667,0.00013821,2]
[406840887,1772221839846,-1001.36632593,0.00013821,2]
[406840888,1772221839855,-1000.0,0.00013821,2]
[406840889,1772221839865,-1000.0,0.00013821,2]
[406840890,1772221839875,-1000.0,0.00013821,2]
[406840891,1772221839883,-1025.33467087,0.00013821,2]
[406840892,1772221839893,-1000.0,0.00013821,2]
[406840894,1772221839903,-1000.0,0.00013821,2]
[406840895,1772221839914,-1000.0,0.00013821,2]
[406840896,1772221839923,-1000.0,0.00013821,2]
[406840897,1772221839932,-1000.0,0.00013821,2]
[406840898,1772221839942,-311.70754032,0.00013821,2]
[406840899,1772221839952,-1000.0,0.00013821,2]
[406840900,1772221839961,-823.0,0.00013848,2]
[406840901,1772221839971,-500.0,0.00013961,2]
[406840902,1772221839980,-164.70408981,0.00013973,2]
[406840903,1772221839989,-647.59110955,0.00014131,2]
[406840904,1772221839998,-277.8150804,0.00014153,2]
[406840905,1772221840012,-682.99773102,0.00014175,2]
[406840906,1772221840022,-707.81573931,0.00014175,2]
[406840907,1772221840032,-600.0,0.00014221,2]
[406840908,1772221840042,-500.0,0.00014246,2]
[406840909,1772221840053,-508.79993581,0.00014247,2]
[406840911,1772221840063,-500.0,0.00014247,2]
[406840912,1772221840073,-500.41545299,0.00014247,2]
[406840913,1772221840083,-500.0,0.00014247,2]
[406840914,1772221840093,-955.89582786,0.00014247,2]
[406840915,1772221840103,-1000.0,0.00014247,2]
[406840917,1772221840112,-1000.0,0.00014247,2]
[406840918,1772221840121,-1000.0,0.00014247,2]
[406840919,1772221840131,-1000.0,0.00014247,2]
[406840920,1772221840141,-1000.0,0.00014247,2]
[406840921,1772221840150,-1000.79298773,0.00014247,2]
[406840922,1772221840160,-1000.0,0.00014247,2]
[406840924,1772221840170,-500.0,0.00014247,2]
[406840925,1772221840179,-500.0,0.00014247,2]
[406840926,1772221840189,-500.0,0.00014247,2]
[406840927,1772221840200,-1000.0,0.00014247,2]
[406840928,1772221840209,-1000.0,0.00014247,2]
[406840929,1772221840218,-1000.0,0.00014247,2]
[406840930,1772221840228,-151.54271982,0.00014247,2]
[406840931,1772221840237,-1000.0,0.00014247,2]
[406840932,1772221840247,-1232.81420429,0.00014368,2]
[406840933,1772221840256,-1500.0,0.00014368,2]
[406840934,1772221840266,-403.55521875,0.00014368,2]
[406840935,1772221840276,-500.0,0.00014368,2]
[406840936,1772221840287,-1500.0,0.00014368,2]
[406840937,1772221840297,-520.42952373,0.00014468,2]
[406840938,1772221840306,-421.72179952,0.00014647,2]
[406840939,1772221840316,-900.0,0.00014768,2]
[406840940,1772221840326,-1000.0,0.00014795,2]
[406840941,1772221840336,-334.21145277,0.00014795,2]
[406840942,1772221840346,-1303.38474924,0.00014795,2]
[406840943,1772221840356,-500.0,0.00014795,2]
[406840944,1772221840367,-1500.0,0.00014795,2]
[406840945,1772221840377,-744.82189483,0.00014878,2]
[406840946,1772221840388,-500.0,0.00014885,2]
[406840947,1772221840398,-225.30264723,0.000149,2]
[406840948,1772221840410,-500.0,0.00014916,2]
[406840949,1772221840420,-2000.0,0.00014916,2]
[406840950,1772221840429,-1060.25528578,0.00014975,2]
[406840951,1772221840440,-1000.0,0.00015078,2]
[406840952,1772221840450,-1152.0,0.00015226,2]
[406840953,1772221840460,-326.85757093,0.00015274,2]
[406840954,1772221840469,-199.03369901,0.00015274,2]
[406840955,1772221840480,-1200.0,0.00015316,2]
[406840956,1772221840490,-780.81908685,0.00015342,2]
[406840971,1772221845957,-1219.18091315,0.00015342,2]
[406840972,1772221845967,-500.0,0.00015434,2]
[406840973,1772221845977,-734.21668574,0.00015464,2]
[406841047,1772221913096,330.3753145,0.00014052,5]
[406841090,1772222443050,-124.014938,0.0001107,2]
[406841091,1772222443081,-39.94832164,0.0001107,2]
[406841100,1772222880269,220.38,8.991e-05,2]
[406841119,1772223031999,-567.0,0.00010504,2]
[406841121,1772223032011,-500.0,0.00010504,2]
[406841123,1772223032022,-231.44233722,0.00011054,2]
[406841125,1772223032031,-200.0,0.00011373,2]
[406841127,1772223032041,-300.0,0.00011911,2]
[406841129,1772223032050,-300.0,0.00011911,2]
[406841131,1772223032060,-300.0,0.00011911,2]
[406841133,1772223032069,-1200.0,0.00011911,2]
[406841135,1772223032078,-14836.41129163,0.00011912,2]
[406841138,1772223036475,-6866.36460997,0.00011912,2]
[406841139,1772223036486,-133.63539003,0.0001197,2]
[406841166,1772223038827,-337.185,0.00011792,2]
[406841167,1772223038837,-17.36460997,0.0001197,2]
[406841168,1772223038848,-151.0,0.0001197,2]
[406841169,1772223038857,-151.0,0.0001197,2]
[406841170,1772223038866,-151.0,0.0001197,2]
[406841171,1772223038875,-151.0,0.0001197,2]
[406841172,1772223038885,-151.0,0.0001197,2]
[406841173,1772223038894,-151.0,0.0001197,2]
[406841174,1772223038903,-151.0,0.0001197,2]
[406841175,1772223038912,-151.0,0.0001197,2]
[406841176,1772223038922,-151.0,0.0001197,2]
[406841177,1772223038931,-151.0,0.0001197,2]
[406841178,1772223038940,-151.0,0.0001197,2]
[406841179,1772223038949,-151.0,0.0001197,2]
[406841180,1772223038958,-151.0,0.0001197,2]
[406841181,1772223038967,-151.0,0.0001197,2]
[406841182,1772223038977,-151.0,0.0001197,2]
[406841183,1772223038986,-751.73622099,0.0001197,2]
[406841184,1772223038995,-500.0,0.00011979,2]
[406841185,1772223039005,-2863.58842254,0.0001198,2]
[406841186,1772223039014,-309.44027317,0.00012148,2]
[406841187,1772223039024,-300.0,0.00012149,2]
[406841188,1772223039033,-300.0,0.00012149,2]
[406841189,1772223039043,-300.0,0.00012149,2]
[406841190,1772223039052,-300.0,0.00012149,2]
[406841191,1772223039061,-300.0,0.00012149,2]
[406841192,1772223039070,-300.0,0.00012149,2]
[406841193,1772223039079,-300.0,0.00012149,2]
[406841194,1772223039089,-300.0,0.00012149,2]
[406841195,1772223039098,-300.0,0.00012149,2]
[406841196,1772223039107,-300.0,0.00012149,2]
[406841197,1772223039116,-300.0,0.00012149,2]
[406841198,1772223039126,-300.0,0.00012149,2]
[406841199,1772223039136,-300.0,0.00012149,2]
[406841200,1772223039147,-300.0,0.00012149,2]
[406841201,1772223039158,-300.0,0.00012149,2]
[406841202,1772223039169,-600.0,0.00012389,2]
[406841203,1772223039179,-500.0,0.00012436,2]
[406841204,1772223039188,-184.25373534,0.00012976,2]
[406841205,1772223039198,-1990.05687719,0.00013,2]
[406841206,1772223039207,-273.10195792,0.00013054,2]
[406841207,1772223039217,-420.0,0.00013076,2]
[406841208,1772223039226,-1680.0,0.00013102,2]
[406841209,1772223039236,-215.24125545,0.00013273,2]
[406841210,1772223039246,-500.0,0.00013273,2]
[406841211,1772223039255,-358.73654042,0.00013273,2]
[406841212,1772223039265,-387.03867066,0.00013273,2]
[406841213,1772223039275,-180.93171551,0.00013273,2]
[406841214,1772223039284,-500.0,0.00013273,2]
[406841215,1772223039293,-500.0,0.00013273,2]
[406841216,1772223039302,-500.0,0.00013273,2]
[406841217,1772223039311,-501.8810816,0.00013273,2]
[406841218,1772223039321,-500.0,0.00013273,2]
[406841219,1772223039329,-507.24459589,0.00013273,2]
[406841220,1772223039339,-500.0,0.00013273,2]
[406841221,1772223039349,-500.0,0.00013273,2]
[406841222,1772223039358,-579.19957721,0.00013273,2]
[406841223,1772223039367,-500.0,0.00013273,2]
[406841224,1772223039376,-514.24,0.00013599,2]
[406841225,1772223039386,-720.0,0.00013628,2]
[406841226,1772223039397,-229.24165722,0.00013673,2]
[406841227,1772223039406,-500.0,0.00013698,2]
[406841228,1772223039416,-481.02468789,0.00013698,2]
[406841229,1772223039424,-625.18,0.00013698,2]
[406841230,1772223039434,-625.18,0.00013698,2]
[406841231,1772223039443,-625.18,0.00013698,2]
[406841232,1772223039452,-625.18,0.00013698,2]
[406841233,1772223039463,-625.18,0.00013698,2]
[406841234,1772223039472,-460.49856353,0.00013698,2]
[406841235,1772223039481,-500.0,0.00013698,2]
[406841236,1772223039491,-500.0,0.00013698,2]
[406841237,1772223039500,-500.0,0.00013698,2]
[406841238,1772223039509,-500.0,0.00013698,2]
[406841239,1772223039518,-500.0,0.00013698,2]
[406841240,1772223039527,-500.0,0.00013698,2]
[406841241,1772223039536,-500.0,0.00013698,2]
[406841242,1772223039546,-500.0,0.00013698,2]
[406841243,1772223039555,-500.0,0.00013698,2]
[406841244,1772223039564,-500.0,0.00013698,2]
[406841245,1772223039573,-500.0,0.00013698,2]
[406841246,1772223039583,-2634.761743,0.00013699,2]
[406841247,1772223039592,-1000.0,0.00013699,2]
[406841248,1772223039602,-500.0,0.00013699,2]
[406841249,1772223039611,-189.76751764,0.00013699,2]
[406841250,1772223039620,-500.0,0.00013699,2]
[406841251,1772223039629,-150.80032092,0.00013699,2]
[406841252,1772223039639,-301.05615761,0.00013699,2]
[406841253,1772223039648,-158.84306367,0.00013699,2]
[406841254,1772223039657,-500.0,0.00013699,2]
[406841255,1772223039666,-500.70543311,0.00013699,2]
[406841256,1772223039675,-422.40442188,0.00013699,2]
[406841257,1772223039684,-500.0,0.00013699,2]
[406841258,1772223039694,-500.0,0.00013699,2]
[406841259,1772223039703,-150.0,0.00013699,2]
[406841260,1772223039712,-500.0,0.00013699,2]
[406841261,1772223039721,-500.0,0.00013699,2]
[406841262,1772223039730,-500.0,0.00013699,2]
[406841263,1772223039739,-500.0,0.00013699,2]
[406841264,1772223039748,-500.52192581,0.00013699,2]
[406841265,1772223039758,-500.0,0.00013699,2]
[406841266,1772223039768,-500.0,0.00013699,2]
[406841267,1772223039780,-161.69285138,0.00013699,2]
[406841268,1772223039789,-205.4414415,0.00013699,2]
[406841269,1772223039799,-500.0,0.00013699,2]
[406841270,1772223039811,-587.30307259,0.00013699,2]
[406841271,1772223039820,-500.0,0.00013699,2]
[406841272,1772223039830,-500.0,0.00013699,2]
[406841273,1772223039843,-500.0,0.00013699,2]
[406841274,1772223039852,-500.0,0.00013699,2]
[406841275,1772223039862,-500.0,0.00013699,2]
[406841276,1772223039872,-500.0,0.00013699,2]
[406841277,1772223039881,-174.64458384,0.00013699,2]
[406841278,1772223039890,-500.43055066,0.00013699,2]
[406841279,1772223039900,-500.0,0.00013699,2]
[406841280,1772223039910,-500.0,0.00013699,2]
[406841281,1772223039920,-500.0,0.00013699,2]
[406841282,1772223039929,-500.0,0.00013699,2]
[406841283,1772223039938,-164.87245238,0.00013699,2]
[406841284,1772223039948,-522.58253381,0.00013699,2]
[406841285,1772223039958,-535.53654986,0.00013699,2]
[406841286,1772223039967,-500.0,0.00013699,2]
[406841287,1772223039979,-331.68791989,0.00013699,2]
[406841288,1772223039988,-175.05491139,0.00013699,2]
[406841289,1772223039997,-150.0,0.000137,2]
[406841290,1772223040008,-618.31897257,0.00013748,2]
[406841292,1772223040016,-1036.278201,0.00013783,2]
[406841293,1772223040184,-625.18,0.0001382,2]
[406841294,1772223040194,-500.0,0.0001382,2]
[406841295,1772223040203,-500.0,0.0001382,2]
[406841296,1772223040212,-1087.64016118,0.00013821,2]
[406841297,1772223040221,-1000.0,0.00013821,2]
[406841298,1772223040230,-1000.0,0.00013821,2]
[406841300,1772223040239,-1000.0,0.00013821,2]
[406841302,1772223040249,-1000.0,0.00013821,2]
[406841304,1772223040258,-1206.5607159,0.00014175,2]
[406841305,1772223040268,-150.0,0.000142,2]
[406841306,1772223040277,-625.18,0.00014246,2]
[406841307,1772223040287,-500.0,0.00014246,2]
[406841308,1772223040297,-162.75978336,0.00014247,2]
[406841309,1772223040306,-1000.0,0.00014247,2]
[406841310,1772223040315,-1058.84230415,0.00014247,2]
[406841311,1772223040324,-500.0,0.00014247,2]
[406841312,1772223040334,-501.97113606,0.00014247,2]
[406841313,1772223040344,-300.0,0.00014247,2]
[406841314,1772223040354,-1000.0,0.00014247,2]
[406841315,1772223040364,-1000.0,0.00014247,2]
[406841316,1772223040373,-1000.0,0.00014247,2]
[406841317,1772223040382,-1000.0,0.00014247,2]
[406841318,1772223040392,-1000.0,0.00014247,2]
[406841319,1772223040401,-867.81742456,0.00014247,2]
[406841320,1772223040410,-1000.0,0.00014247,2]
[406841321,1772223040419,-963.01043928,0.00014247,2]
[406841322,1772223040429,-1000.0,0.00014247,2]
[406841323,1772223040438,-1000.0,0.00014247,2]
[406841324,1772223040448,-1000.0,0.00014247,2]
[406841325,1772223040456,-150.44666625,0.00014247,2]
[406841326,1772223040466,-449.41460456,0.00014267,2]
[406841327,1772223040477,-164.89094981,0.00014268,2]
[406841328,1772223040486,-587.0,0.00014356,2]
[406841329,1772223040497,-1036.278201,0.00014363,2]
[406841330,1772223040506,-500.0,0.00014368,2]
[406841331,1772223040516,-1402.71852055,0.00014368,2]
[406841332,1772223040526,-1500.0,0.00014368,2]
[406841333,1772223040537,-184.25373534,0.00014385,2]
[406841334,1772223040548,-2351.0,0.00014412,2]
[406841335,1772223040559,-3641.5279407,0.00014607,2]
[406841336,1772223040568,-516.99176411,0.00014795,2]
[406841337,1772223040578,-916.54356557,0.00014795,2]
[406841338,1772223040588,-1000.0,0.00014795,2]
[406841339,1772223040597,-1500.0,0.00014795,2]
[406841340,1772223040607,-504.25010728,0.00014795,2]
[406841341,1772223040616,-232.25994081,0.00014795,2]
[406841342,1772223040625,-1500.0,0.00014795,2]
[406841343,1772223040635,-684.82155238,0.00014795,2]
[406841344,1772223040645,-1500.0,0.00014795,2]
[406841345,1772223040654,-150.0,0.000148,2]
[406841346,1772223040664,-744.82189483,0.00014872,2]
[406841347,1772223040673,-625.18,0.00014916,2]
[406841348,1772223040683,-456.40752115,0.00014916,2]
[406841349,1772223040694,-1765.78331426,0.00014916,2]
[406841350,1772223040704,-1036.278201,0.00014943,2]